[Event "Early-Titled-Tuesday-Blitz-July-09-2024"]
[Site "Chess.com"]
[Date "2024.07.09"]
[Round "2"]
[White "pouya21"]
[Black "Baronessa08"]
[Result "1-0"]
[WhiteElo "2871"]
[BlackElo "2595"]
[TimeControl "180+1"]
[EndTime "8:19:01 PDT"]
[Termination "pouya21 won on time"]

1. d4 {[%clk 0:03:00.5]} 1... d5 {[%clk 0:02:59.5]} 2. Nf3 {[%clk 0:03:00.6]}
2... Nf6 {[%clk 0:02:59.1]} 3. c4 {[%clk 0:03:00.9]} 3... e6 {[%clk 0:02:59]} 4.
g3 {[%clk 0:03:01.4]} 4... Nbd7 {[%clk 0:02:57.1]} 5. Bg2 {[%clk 0:02:58.1]}
5... c6 {[%clk 0:02:57]} 6. Nbd2 {[%clk 0:02:51.4]} 6... b6 {[%clk 0:02:52.6]}
7. O-O {[%clk 0:02:51.3]} 7... Bb7 {[%clk 0:02:48.4]} 8. Qc2 {[%clk 0:02:50.9]}
8... c5 {[%clk 0:02:44.6]} 9. dxc5 {[%clk 0:02:33.6]} 9... Bxc5 {[%clk 0:02:43]}
10. b3 {[%clk 0:02:19.3]} 10... O-O {[%clk 0:02:41.1]} 11. Bb2 {[%clk
0:02:19.8]} 11... Rc8 {[%clk 0:02:40.5]} 12. Rad1 {[%clk 0:02:14.4]} 12... Qe7
{[%clk 0:02:35.4]} 13. Qb1 {[%clk 0:02:08.2]} 13... Rfd8 {[%clk 0:02:25.6]} 14.
e3 {[%clk 0:02:05.2]} 14... Ba3 {[%clk 0:02:20]} 15. Nd4 {[%clk 0:01:45.2]}
15... Bxb2 {[%clk 0:02:17.3]} 16. Qxb2 {[%clk 0:01:46.1]} 16... Nc5 {[%clk
0:02:16.1]} 17. cxd5 {[%clk 0:01:37.9]} 17... Bxd5 {[%clk 0:02:09.1]} 18. N2f3
{[%clk 0:01:33]} 18... h6 {[%clk 0:01:34.3]} 19. Ne5 {[%clk 0:01:24.4]} 19...
Bxg2 {[%clk 0:01:33.9]} 20. Kxg2 {[%clk 0:01:25.3]} 20... Qb7+ {[%clk
0:01:33.4]} 21. Ndf3 {[%clk 0:01:22.7]} 21... Nd5 {[%clk 0:01:20.6]} 22. Rd4
{[%clk 0:01:09.4]} 22... f6 {[%clk 0:01:16.7]} 23. Ng6 {[%clk 0:01:04.9]} 23...
Kf7 {[%clk 0:00:55.4]} 24. Qb1 {[%clk 0:00:55.2]} 24... Nc3 {[%clk 0:00:48.3]}
25. Qc2 {[%clk 0:00:38.2]} 25... N3e4 {[%clk 0:00:47.1]} 26. Rxd8 {[%clk
0:00:34.8]} 26... Rxd8 {[%clk 0:00:46.5]} 27. Nf4 {[%clk 0:00:24.8]} 27... Nd2
{[%clk 0:00:42]} 28. Qg6+ {[%clk 0:00:20.6]} 28... Kg8 {[%clk 0:00:41.5]} 29.
Qh5 {[%clk 0:00:13.4]} 29... Nxf1 {[%clk 0:00:38.9]} 30. Kxf1 {[%clk 0:00:13.6]}
30... Qe4 {[%clk 0:00:32.5]} 31. Ne1 {[%clk 0:00:10]} 31... Qh1+ {[%clk
0:00:20.1]} 32. Ke2 {[%clk 0:00:10.4]} 32... Ne4 {[%clk 0:00:20.8]} 33. Nfd3
{[%clk 0:00:07.8]} 33... Ng5 {[%clk 0:00:11.4]} 34. h4 {[%clk 0:00:06.3]} 34...
Nh3 {[%clk 0:00:08.1]} 35. Qg4 {[%clk 0:00:06.2]} 35... f5 {[%clk 0:00:07.5]}
36. Qc4 {[%clk 0:00:05.9]} 36... Qd5 {[%clk 0:00:07.4]} 37. Qxd5 {[%clk
0:00:04.2]} 37... Rxd5 {[%clk 0:00:08.3]} 38. Nf3 {[%clk 0:00:05.1]} 38... g5
{[%clk 0:00:08.3]} 39. hxg5 {[%clk 0:00:05]} 39... hxg5 {[%clk 0:00:09.2]} 40.
Nd4 {[%clk 0:00:04.4]} 40... Kf7 {[%clk 0:00:09.5]} 41. Nb4 {[%clk 0:00:04.7]}
41... Rd7 {[%clk 0:00:09.5]} 42. Nbc6 {[%clk 0:00:05]} 42... Ke8 {[%clk
0:00:07.8]} 43. Nb5 {[%clk 0:00:04.7]} 43... a6 {[%clk 0:00:06.7]} 44. Nbd4
{[%clk 0:00:05]} 44... f4 {[%clk 0:00:04.9]} 45. gxf4 {[%clk 0:00:04.6]} 45...
gxf4 {[%clk 0:00:04.8]} 46. Nxe6 {[%clk 0:00:05]} 46... fxe3 {[%clk 0:00:05.2]}
47. fxe3 {[%clk 0:00:05.9]} 47... Rd6 {[%clk 0:00:05.4]} 48. Ned4 {[%clk
0:00:05.1]} 48... Ng5 {[%clk 0:00:04.7]} 49. Nb4 {[%clk 0:00:05]} 49... a5
{[%clk 0:00:04.5]} 50. Nd3 {[%clk 0:00:05.7]} 50... Ne4 {[%clk 0:00:04.7]} 51.
a4 {[%clk 0:00:04.3]} 51... Kd7 {[%clk 0:00:04.1]} 52. Ne5+ {[%clk 0:00:04.2]}
52... Kd8 {[%clk 0:00:03.2]} 53. Kd3 {[%clk 0:00:04.2]} 53... Nc5+ {[%clk
0:00:02.8]} 54. Kc4 {[%clk 0:00:04.8]} 54... Kc8 {[%clk 0:00:02.3]} 55. Kb5
{[%clk 0:00:04.4]} 55... Rh6 {[%clk 0:00:02.3]} 56. Nec6 {[%clk 0:00:03.3]}
56... Kc7 {[%clk 0:00:01.9]} 57. Ne5 {[%clk 0:00:03.1]} 57... Ne4 {[%clk
0:00:01.5]} 58. Kc4 {[%clk 0:00:02.3]} 58... Nd6+ {[%clk 0:00:01.2]} 59. Kd5
{[%clk 0:00:02.5]} 59... Rh1 {[%clk 0:00:01.7]} 60. Ne6+ {[%clk 0:00:02.8]}
60... Kb7 {[%clk 0:00:01.3]} 61. Kxd6 {[%clk 0:00:03.5]} 61... Rb1 {[%clk
0:00:01.8]} 62. Nd4 {[%clk 0:00:04]} 62... Rb2 {[%clk 0:00:01.5]} 63. Kd5 {[%clk
0:00:04.1]} 63... Rb1 {[%clk 0:00:01.9]} 64. e4 {[%clk 0:00:04.6]} 64... Re1
{[%clk 0:00:01.9]} 65. Nc4 {[%clk 0:00:05]} 65... Kc7 {[%clk 0:00:02.4]} 66. e5
{[%clk 0:00:05.6]} 66... Kd7 {[%clk 0:00:01.5]} 67. e6+ {[%clk 0:00:05.9]} 67...
Ke7 {[%clk 0:00:01.8]} 68. Ne5 {[%clk 0:00:06.5]} 1-0

[Event "Early-Titled-Tuesday-Blitz-July-09-2024"]
[Site "Chess.com"]
[Date "2024.07.09"]
[Round "2"]
[White "Kotofeyca"]
[Black "klauser63"]
[Result "1/2-1/2"]
[WhiteElo "2506"]
[BlackElo "2314"]
[TimeControl "180+1"]
[EndTime "8:19:02 PDT"]
[Termination "Game drawn - insufficient material"]

1. d4 {[%clk 0:02:59.7]} 1... d5 {[%clk 0:02:58.8]} 2. c4 {[%clk 0:02:59.7]}
2... c6 {[%clk 0:02:58.7]} 3. Nc3 {[%clk 0:02:59.8]} 3... Nf6 {[%clk 0:02:58.7]}
4. cxd5 {[%clk 0:03:00.1]} 4... cxd5 {[%clk 0:02:58.6]} 5. Bf4 {[%clk
0:03:00.7]} 5... a6 {[%clk 0:02:58]} 6. e3 {[%clk 0:03:01.2]} 6... Nc6 {[%clk
0:02:57.5]} 7. Bd3 {[%clk 0:03:01.3]} 7... g6 {[%clk 0:02:56.5]} 8. Nf3 {[%clk
0:03:01]} 8... Bg7 {[%clk 0:02:56.4]} 9. O-O {[%clk 0:03:00.4]} 9... O-O {[%clk
0:02:56.4]} 10. Ne5 {[%clk 0:03:00.6]} 10... Nxe5 {[%clk 0:02:43.8]} 11. Bxe5
{[%clk 0:03:00.3]} 11... Be6 {[%clk 0:02:31.5]} 12. Qe2 {[%clk 0:02:56]} 12...
Rc8 {[%clk 0:02:27.1]} 13. Rfc1 {[%clk 0:02:55.2]} 13... Nd7 {[%clk 0:02:20.4]}
14. Bxg7 {[%clk 0:02:54.4]} 14... Kxg7 {[%clk 0:02:20.6]} 15. Rc2 {[%clk
0:02:43.1]} 15... Nb6 {[%clk 0:02:14]} 16. Rac1 {[%clk 0:02:39.6]} 16... Qd7
{[%clk 0:02:12.1]} 17. Qe1 {[%clk 0:02:05]} 17... Bf5 {[%clk 0:02:10.6]} 18.
Bxf5 {[%clk 0:01:58.3]} 18... Qxf5 {[%clk 0:02:11.5]} 19. b3 {[%clk 0:01:53.6]}
19... Rc6 {[%clk 0:02:05.2]} 20. Rd2 {[%clk 0:01:24.4]} 20... Rfc8 {[%clk
0:01:58.4]} 21. Rdd1 {[%clk 0:01:24.6]} 21... h5 {[%clk 0:01:44]} 22. h3 {[%clk
0:01:24.3]} 22... Nd7 {[%clk 0:01:35.5]} 23. Ne2 {[%clk 0:01:17.2]} 23... Nf6
{[%clk 0:01:27.6]} 24. Ng3 {[%clk 0:01:02.6]} 24... Qd7 {[%clk 0:01:16.5]} 25.
Rxc6 {[%clk 0:01:02.5]} 25... Qxc6 {[%clk 0:01:12.9]} 26. Ne2 {[%clk 0:01:02.6]}
26... Ne4 {[%clk 0:01:09.6]} 27. Rc1 {[%clk 0:01:02.6]} 27... Qd7 {[%clk
0:01:05]} 28. Rxc8 {[%clk 0:00:59.6]} 28... Qxc8 {[%clk 0:01:05.9]} 29. Qc1
{[%clk 0:00:59.3]} 29... Qxc1+ {[%clk 0:00:37.8]} 30. Nxc1 {[%clk 0:00:58.7]}
30... Kf6 {[%clk 0:00:36.4]} 31. f3 {[%clk 0:00:57.5]} 31... Nc3 {[%clk
0:00:33.7]} 32. Kf2 {[%clk 0:00:57.5]} 32... e5 {[%clk 0:00:27.8]} 33. h4 {[%clk
0:00:34.8]} 33... Nb5 {[%clk 0:00:16.4]} 34. Ne2 {[%clk 0:00:32.9]} 34... Ke6
{[%clk 0:00:13.1]} 35. g4 {[%clk 0:00:28.9]} 35... Nd6 {[%clk 0:00:08.5]} 36.
dxe5 {[%clk 0:00:25.1]} 36... Kxe5 {[%clk 0:00:08.2]} 37. gxh5 {[%clk
0:00:25.7]} 37... gxh5 {[%clk 0:00:08.3]} 38. Nf4 {[%clk 0:00:26.1]} 38... d4
{[%clk 0:00:07.7]} 39. Nxh5 {[%clk 0:00:26]} 39... dxe3+ {[%clk 0:00:07.4]} 40.
Kxe3 {[%clk 0:00:25.1]} 40... Nf5+ {[%clk 0:00:08.3]} 41. Kf2 {[%clk 0:00:19.3]}
41... Nxh4 {[%clk 0:00:09.2]} 42. Ng7 {[%clk 0:00:18.3]} 42... Ng6 {[%clk
0:00:07.9]} 43. Ne8 {[%clk 0:00:16.4]} 43... Nf4 {[%clk 0:00:05.5]} 44. Ke3
{[%clk 0:00:15.3]} 44... Nd5+ {[%clk 0:00:05.7]} 45. Kd3 {[%clk 0:00:15.1]}
45... Ke6 {[%clk 0:00:05.2]} 46. Kd4 {[%clk 0:00:14.1]} 46... Nb4 {[%clk
0:00:04.5]} 47. a4 {[%clk 0:00:11.9]} 47... Nc6+ {[%clk 0:00:04.3]} 48. Kc5
{[%clk 0:00:11.4]} 48... Ne5 {[%clk 0:00:04.3]} 49. Kb6 {[%clk 0:00:09.7]} 49...
Nxf3 {[%clk 0:00:03]} 50. Nc7+ {[%clk 0:00:10.2]} 50... Kd7 {[%clk 0:00:02.9]}
51. Kxb7 {[%clk 0:00:10.2]} 51... a5 {[%clk 0:00:03]} 52. Nd5 {[%clk 0:00:08.7]}
52... f5 {[%clk 0:00:02.8]} 53. Kb6 {[%clk 0:00:08.6]} 53... Nd4 {[%clk
0:00:03.4]} 54. Kxa5 {[%clk 0:00:06.9]} 54... Nxb3+ {[%clk 0:00:03.9]} 55. Kb6
{[%clk 0:00:06.8]} 55... Nd4 {[%clk 0:00:04.6]} 56. Nf4 {[%clk 0:00:06.4]} 56...
Nc6 {[%clk 0:00:04.9]} 57. Nd5 {[%clk 0:00:05.7]} 57... Kd6 {[%clk 0:00:04.2]}
58. Nf4 {[%clk 0:00:05.5]} 58... Nb4 {[%clk 0:00:04.1]} 59. a5 {[%clk
0:00:05.3]} 59... Ke5 {[%clk 0:00:03.8]} 60. Nh5 {[%clk 0:00:04.8]} 60... Nd5+
{[%clk 0:00:02.5]} 61. Kc5 {[%clk 0:00:04.3]} 61... f4 {[%clk 0:00:03.2]} 62. a6
{[%clk 0:00:03.8]} 62... Nc7 {[%clk 0:00:03]} 63. a7 {[%clk 0:00:03]} 63... f3
{[%clk 0:00:03.6]} 64. Ng3 {[%clk 0:00:02]} 64... f2 {[%clk 0:00:03.7]} 65. Nf1
{[%clk 0:00:02.2]} 65... Ke6 {[%clk 0:00:03.6]} 66. Kb6 {[%clk 0:00:03.1]} 66...
Kd6 {[%clk 0:00:04]} 67. Kb7 {[%clk 0:00:03.4]} 67... Kd7 {[%clk 0:00:03.8]} 68.
Kb8 {[%clk 0:00:03.4]} 68... Kc6 {[%clk 0:00:03.7]} 69. a8=Q+ {[%clk 0:00:03.2]}
69... Nxa8 {[%clk 0:00:03.9]} 70. Kxa8 {[%clk 0:00:04.1]} 70... Kd5 {[%clk
0:00:04.8]} 71. Kb7 {[%clk 0:00:04.4]} 71... Ke4 {[%clk 0:00:05.7]} 72. Kc6
{[%clk 0:00:04.7]} 72... Kf3 {[%clk 0:00:06.6]} 73. Kd5 {[%clk 0:00:04.9]} 73...
Ke2 {[%clk 0:00:07.2]} 74. Nh2 {[%clk 0:00:05]} 74... Ke1 {[%clk 0:00:07.1]} 75.
Ke4 {[%clk 0:00:05.3]} 75... Ke2 {[%clk 0:00:07.9]} 76. Kf4 {[%clk 0:00:05]}
76... Kd2 {[%clk 0:00:07.8]} 77. Kf3 {[%clk 0:00:05.1]} 77... Ke1 {[%clk
0:00:08.7]} 78. Ke3 {[%clk 0:00:05.2]} 78... f1=Q {[%clk 0:00:06.1]} 79. Nxf1
{[%clk 0:00:05]} 1/2-1/2

[Event "Early-Titled-Tuesday-Blitz-July-09-2024"]
[Site "Chess.com"]
[Date "2024.07.09"]
[Round "2"]
[White "Vladimir_Zakhartsov"]
[Black "hakanazeri2"]
[Result "1/2-1/2"]
[WhiteElo "2879"]
[BlackElo "2613"]
[TimeControl "180+1"]
[EndTime "8:19:05 PDT"]
[Termination "Game drawn - insufficient material"]

1. d4 {[%clk 0:02:53.7]} 1... Nf6 {[%clk 0:02:59.5]} 2. c4 {[%clk 0:02:53.9]}
2... e6 {[%clk 0:02:59.2]} 3. Nf3 {[%clk 0:02:54.1]} 3... d5 {[%clk 0:02:59.4]}
4. g3 {[%clk 0:02:54.5]} 4... Be7 {[%clk 0:02:59.8]} 5. Bg2 {[%clk 0:02:54.6]}
5... O-O {[%clk 0:03:00.3]} 6. Nc3 {[%clk 0:02:55.2]} 6... dxc4 {[%clk
0:02:58.3]} 7. Ne5 {[%clk 0:02:53]} 7... c5 {[%clk 0:02:58.7]} 8. dxc5 {[%clk
0:02:51.3]} 8... Qxd1+ {[%clk 0:02:58.6]} 9. Nxd1 {[%clk 0:02:51.9]} 9... Bxc5
{[%clk 0:02:57.7]} 10. Ne3 {[%clk 0:02:52.5]} 10... c3 {[%clk 0:02:26.4]} 11.
bxc3 {[%clk 0:02:53.4]} 11... Nbd7 {[%clk 0:02:26.5]} 12. Nd3 {[%clk 0:02:53.2]}
12... Bb6 {[%clk 0:01:56]} 13. a4 {[%clk 0:02:01.4]} 13... Rb8 {[%clk
0:01:41.8]} 14. Nc4 {[%clk 0:01:57.7]} 14... Bc7 {[%clk 0:01:41.9]} 15. a5
{[%clk 0:01:55.4]} 15... Nd5 {[%clk 0:00:47.7]} 16. Ba3 {[%clk 0:01:46.4]} 16...
Rd8 {[%clk 0:00:41.2]} 17. Kd2 {[%clk 0:01:33.5]} 17... b5 {[%clk 0:00:38]} 18.
axb6 {[%clk 0:01:30.6]} 18... N7xb6 {[%clk 0:00:37.6]} 19. Na5 {[%clk
0:01:29.8]} 19... Bd7 {[%clk 0:00:17.8]} 20. c4 {[%clk 0:01:16.5]} 20... Na4
{[%clk 0:00:17.6]} 21. Nb7 {[%clk 0:00:54.8]} 21... Rxb7 {[%clk 0:00:15]} 22.
cxd5 {[%clk 0:00:55.5]} 22... Ba5+ {[%clk 0:00:11.5]} 23. Ke3 {[%clk 0:00:56]}
23... Bb6+ {[%clk 0:00:11.9]} 24. Kf4 {[%clk 0:00:56.6]} 24... exd5 {[%clk
0:00:11.1]} 25. Bxd5 {[%clk 0:00:56.2]} 25... Rc7 {[%clk 0:00:10.5]} 26. Rhc1
{[%clk 0:00:55.4]} 26... Nc3 {[%clk 0:00:10.4]} 27. Bf3 {[%clk 0:00:52]} 27...
Be6 {[%clk 0:00:09.6]} 28. g4 {[%clk 0:00:50.4]} 28... Rcc8 {[%clk 0:00:06.1]}
29. Kg3 {[%clk 0:00:50.3]} 29... Bd5 {[%clk 0:00:04.5]} 30. Kg2 {[%clk
0:00:44.6]} 30... Bxf3+ {[%clk 0:00:04.6]} 31. Kxf3 {[%clk 0:00:45.3]} 31... Nb5
{[%clk 0:00:05]} 32. Bb2 {[%clk 0:00:40.4]} 32... Bd4 {[%clk 0:00:05.1]} 33.
Rxc8 {[%clk 0:00:36.5]} 33... Rxc8 {[%clk 0:00:06]} 34. Ra5 {[%clk 0:00:33.9]}
34... Bxb2 {[%clk 0:00:03.4]} 35. Rxb5 {[%clk 0:00:27.9]} 35... Bd4 {[%clk
0:00:03.5]} 36. Nf4 {[%clk 0:00:26.4]} 36... g6 {[%clk 0:00:02.5]} 37. e3 {[%clk
0:00:25.8]} 37... Bb6 {[%clk 0:00:02.3]} 38. Nd5 {[%clk 0:00:25.9]} 38... Rb8
{[%clk 0:00:02.9]} 39. g5 {[%clk 0:00:24.8]} 39... Kg7 {[%clk 0:00:03.4]} 40. h4
{[%clk 0:00:24.9]} 40... h6 {[%clk 0:00:03.9]} 41. Rb4 {[%clk 0:00:18.5]} 41...
hxg5 {[%clk 0:00:03.3]} 42. hxg5 {[%clk 0:00:19.4]} 42... Bc7 {[%clk 0:00:02.3]}
43. Ra4 {[%clk 0:00:18.3]} 43... Bb6 {[%clk 0:00:02.7]} 44. Ra6 {[%clk
0:00:17.6]} 44... Rb7 {[%clk 0:00:02.5]} 45. Kg4 {[%clk 0:00:18.2]} 45... Rb8
{[%clk 0:00:02.9]} 46. f4 {[%clk 0:00:17.9]} 46... Re8 {[%clk 0:00:03.2]} 47.
Kf3 {[%clk 0:00:17.9]} 47... Re6 {[%clk 0:00:03.8]} 48. e4 {[%clk 0:00:16.7]}
48... Rc6 {[%clk 0:00:04.5]} 49. Ra3 {[%clk 0:00:16.5]} 49... Rc1 {[%clk
0:00:02.5]} 50. Rc3 {[%clk 0:00:11.7]} 50... Rxc3+ {[%clk 0:00:01.8]} 51. Nxc3
{[%clk 0:00:12.6]} 51... a5 {[%clk 0:00:02.5]} 52. Na4 {[%clk 0:00:13]} 52...
Bd4 {[%clk 0:00:02.5]} 53. e5 {[%clk 0:00:12.5]} 53... Kf8 {[%clk 0:00:03]} 54.
Ke4 {[%clk 0:00:13.2]} 54... Ba7 {[%clk 0:00:02.4]} 55. Kd5 {[%clk 0:00:13.3]}
55... Ke7 {[%clk 0:00:03]} 56. Nc3 {[%clk 0:00:13.4]} 56... Be3 {[%clk
0:00:03.2]} 57. Ke4 {[%clk 0:00:13.9]} 57... Bd2 {[%clk 0:00:03.4]} 58. Na4
{[%clk 0:00:13.3]} 58... Bb4 {[%clk 0:00:02.7]} 59. Kd5 {[%clk 0:00:13.2]} 59...
Bd2 {[%clk 0:00:02.1]} 60. Ke4 {[%clk 0:00:13.6]} 60... Bb4 {[%clk 0:00:02.8]}
61. Kd3 {[%clk 0:00:12.7]} 61... Ke6 {[%clk 0:00:02.5]} 62. Ke4 {[%clk
0:00:13.3]} 62... Be7 {[%clk 0:00:02.8]} 63. Nb6 {[%clk 0:00:13.4]} 63... Bc5
{[%clk 0:00:02.7]} 64. Na4 {[%clk 0:00:13.3]} 64... Ba7 {[%clk 0:00:02.7]} 65.
Nc3 {[%clk 0:00:13.7]} 65... Bf2 {[%clk 0:00:02.3]} 66. Na4 {[%clk 0:00:13.1]}
66... Kd7 {[%clk 0:00:02.8]} 67. Kd5 {[%clk 0:00:13]} 67... Bg3 {[%clk
0:00:03.3]} 68. Ke4 {[%clk 0:00:13.4]} 68... Kc6 {[%clk 0:00:03.6]} 69. f5
{[%clk 0:00:14.1]} 69... Bh4 {[%clk 0:00:02.7]} 70. e6 {[%clk 0:00:13.7]} 70...
gxf5+ {[%clk 0:00:01.7]} 71. Ke5 {[%clk 0:00:14.3]} 71... Bxg5 {[%clk
0:00:01.5]} 72. exf7 {[%clk 0:00:14]} 72... Be7 {[%clk 0:00:02.1]} 73. Kxf5
{[%clk 0:00:14.4]} 73... Bf8 {[%clk 0:00:02.5]} 74. Ke6 {[%clk 0:00:14.8]} 74...
Kb5 {[%clk 0:00:02.4]} 75. Nb2 {[%clk 0:00:15.5]} 75... a4 {[%clk 0:00:02.5]}
76. Nxa4 {[%clk 0:00:13.8]} 76... Kxa4 {[%clk 0:00:02.9]} 77. Kd7 {[%clk
0:00:14.7]} 77... Kb5 {[%clk 0:00:03.4]} 78. Ke8 {[%clk 0:00:15.6]} 78... Ba3
{[%clk 0:00:04]} 79. f8=Q {[%clk 0:00:15.8]} 79... Bxf8 {[%clk 0:00:04.5]}
1/2-1/2

[Event "Early-Titled-Tuesday-Blitz-July-09-2024"]
[Site "Chess.com"]
[Date "2024.07.09"]
[Round "2"]
[White "Zheenbekov86"]
[Black "Mysterio47"]
[Result "1-0"]
[WhiteElo "2436"]
[BlackElo "2743"]
[TimeControl "180+1"]
[EndTime "8:19:06 PDT"]
[Termination "Zheenbekov86 won by resignation"]

1. e4 {[%clk 0:02:55.5]} 1... e6 {[%clk 0:02:59]} 2. d4 {[%clk 0:02:54.8]} 2...
d5 {[%clk 0:02:59.5]} 3. exd5 {[%clk 0:02:55]} 3... exd5 {[%clk 0:02:59.8]} 4.
Nf3 {[%clk 0:02:55.2]} 4... Nf6 {[%clk 0:03:00.4]} 5. Bd3 {[%clk 0:02:52]} 5...
Be7 {[%clk 0:03:00.4]} 6. O-O {[%clk 0:02:50.3]} 6... O-O {[%clk 0:03:01]} 7. h3
{[%clk 0:02:46]} 7... c5 {[%clk 0:03:00.3]} 8. dxc5 {[%clk 0:02:45.5]} 8... Bxc5
{[%clk 0:03:01.2]} 9. Nbd2 {[%clk 0:02:42.9]} 9... Nc6 {[%clk 0:03:01.1]} 10.
Nb3 {[%clk 0:02:42.9]} 10... Bb6 {[%clk 0:03:01.4]} 11. c3 {[%clk 0:02:40.8]}
11... h6 {[%clk 0:03:01.6]} 12. Re1 {[%clk 0:02:37.8]} 12... Be6 {[%clk
0:03:01.4]} 13. Be3 {[%clk 0:02:37.7]} 13... Re8 {[%clk 0:02:56.7]} 14. Nbd4
{[%clk 0:02:34.4]} 14... Rc8 {[%clk 0:02:54.7]} 15. Nxe6 {[%clk 0:02:15]} 15...
fxe6 {[%clk 0:02:51]} 16. Bg6 {[%clk 0:02:14]} 16... Re7 {[%clk 0:02:51]} 17.
Qd2 {[%clk 0:02:11.6]} 17... Qf8 {[%clk 0:02:45.5]} 18. Rad1 {[%clk 0:02:08.9]}
18... Nd7 {[%clk 0:02:44]} 19. Bxb6 {[%clk 0:02:06.9]} 19... Nxb6 {[%clk
0:02:42.2]} 20. b3 {[%clk 0:02:03.4]} 20... Qf6 {[%clk 0:02:41]} 21. Bd3 {[%clk
0:02:00.8]} 21... e5 {[%clk 0:02:40.9]} 22. Bb5 {[%clk 0:01:53.2]} 22... e4
{[%clk 0:02:39]} 23. Nd4 {[%clk 0:01:44.2]} 23... Rf8 {[%clk 0:02:39.5]} 24. a4
{[%clk 0:01:30.7]} 24... Ne5 {[%clk 0:02:38.4]} 25. a5 {[%clk 0:01:25]} 25...
Na8 {[%clk 0:02:34.9]} 26. Nc2 {[%clk 0:01:14.8]} 26... Nc7 {[%clk 0:02:34.9]}
27. Bf1 {[%clk 0:01:14.6]} 27... Qg6 {[%clk 0:02:29.8]} 28. Kh1 {[%clk
0:01:11.3]} 28... Ref7 {[%clk 0:02:29.7]} 29. Qd4 {[%clk 0:00:58.9]} 29... Qg5
{[%clk 0:02:28.8]} 30. Rd2 {[%clk 0:00:51.9]} 30... Nc6 {[%clk 0:02:15.2]} 31.
Qe3 {[%clk 0:00:51.2]} 31... Qh4 {[%clk 0:02:15.5]} 32. Kg1 {[%clk 0:00:39.8]}
32... Rf5 {[%clk 0:02:02.2]} 33. c4 {[%clk 0:00:38.6]} 33... Rg5 {[%clk
0:01:52.9]} 34. cxd5 {[%clk 0:00:37.2]} 34... Rf3 {[%clk 0:01:52.6]} 35. Qxe4
{[%clk 0:00:32.1]} 35... Rf4 {[%clk 0:01:35.1]} 36. Qe3 {[%clk 0:00:31.3]} 36...
Ne5 {[%clk 0:01:18.5]} 37. Qxe5 {[%clk 0:00:24.1]} 37... Rxe5 {[%clk 0:01:15.9]}
38. Rxe5 {[%clk 0:00:24.2]} 38... Qf6 {[%clk 0:01:05.5]} 39. Re1 {[%clk
0:00:14.3]} 39... Qd6 {[%clk 0:00:59.2]} 40. Ne3 {[%clk 0:00:14.3]} 40... Rf8
{[%clk 0:00:50.3]} 41. Nc4 {[%clk 0:00:13.9]} 41... Qf6 {[%clk 0:00:38.7]} 42.
d6 {[%clk 0:00:13.6]} 42... Ne6 {[%clk 0:00:39.4]} 43. d7 {[%clk 0:00:13.2]}
43... Nd8 {[%clk 0:00:39.2]} 44. Re8 {[%clk 0:00:12.3]} 44... g5 {[%clk
0:00:28.8]} 45. Rxf8+ {[%clk 0:00:12]} 45... Kxf8 {[%clk 0:00:26.9]} 46. Re2
{[%clk 0:00:11.8]} 46... Kg7 {[%clk 0:00:20.6]} 47. Re3 {[%clk 0:00:10.8]} 47...
Qf5 {[%clk 0:00:16.6]} 48. Rd3 {[%clk 0:00:09.2]} 48... h5 {[%clk 0:00:13.2]}
49. Rd2 {[%clk 0:00:08.7]} 49... g4 {[%clk 0:00:13]} 50. hxg4 {[%clk 0:00:07.8]}
50... hxg4 {[%clk 0:00:13.9]} 51. g3 {[%clk 0:00:07.7]} 51... Qe6 {[%clk
0:00:13.2]} 52. Ne3 {[%clk 0:00:07.3]} 52... Qe5 {[%clk 0:00:11.5]} 53. Nxg4
{[%clk 0:00:05.6]} 53... Qxa5 {[%clk 0:00:12.1]} 54. Rd3 {[%clk 0:00:04.3]}
54... Qg5 {[%clk 0:00:12.3]} 55. Ne3 {[%clk 0:00:04.1]} 55... Qf6 {[%clk
0:00:11.6]} 56. Rd5 {[%clk 0:00:04.1]} 56... a6 {[%clk 0:00:10]} 57. Bd3 {[%clk
0:00:04.2]} 57... Qe6 {[%clk 0:00:07.9]} 58. Kg2 {[%clk 0:00:04]} 58... b5
{[%clk 0:00:07.1]} 59. Rg5+ {[%clk 0:00:04.1]} 59... Kf7 {[%clk 0:00:05.2]} 60.
Rf5+ {[%clk 0:00:04.2]} 60... Kg7 {[%clk 0:00:05.5]} 61. Rg5+ {[%clk 0:00:04.6]}
61... Kf7 {[%clk 0:00:06.1]} 62. Rh5 {[%clk 0:00:05]} 62... Kg7 {[%clk
0:00:03.9]} 63. Rh7+ {[%clk 0:00:05]} 63... Kg8 {[%clk 0:00:04.6]} 64. Rh5
{[%clk 0:00:05]} 64... Qc6+ {[%clk 0:00:05.1]} 65. Kg1 {[%clk 0:00:03.7]} 65...
Kf7 {[%clk 0:00:04.8]} 66. Rf5+ {[%clk 0:00:03.4]} 66... Kg7 {[%clk 0:00:05.2]}
67. Ng4 {[%clk 0:00:03.2]} 67... Qc1+ {[%clk 0:00:05.2]} 68. Kh2 {[%clk
0:00:02.5]} 68... Qc6 {[%clk 0:00:05.2]} 69. Rg5+ {[%clk 0:00:02.8]} 69... Kf7
{[%clk 0:00:04.9]} 70. Ne5+ {[%clk 0:00:03.1]} 70... Kf6 {[%clk 0:00:05.6]} 71.
Nxc6 {[%clk 0:00:03.7]} 71... Nxc6 {[%clk 0:00:06.3]} 72. Rg6+ {[%clk
0:00:04.3]} 1-0